Cogmind - Beta 13 @@@ ROGUE MODE // 2024.04.15 @ 20:17:20 Player: Vox Result: Destroyed by B-75 Beast with Heavy Machine Gun Performance ------------- Evolutions (3) 1500 Regions Visited (7) 1400 Robots Destroyed (103) 515 Value Destroyed (2842) 2842 Prototype IDs (1) 20 Alien Tech Used (0) 0 Bonus (132) 132 TOTAL SCORE: 6409 Bonus ------- High Alert Combat Kills 159 Friendly Fire -27 Cogmind --------- Core Integrity 0/700 Matter 61/300 Energy 83/100 System Corruption 0% Temperature Cool (12) Movement Treading (160) Location -7/Lower Caves Parts ------- > --- POWER (1) -------- (None) > --- PROPULSION (4) --- Improved Medium Treads > --- UTILITY (6) ------ Improved Signal Interpreter Improved Power Shielding Hacking Suite Hacking Suite System Shield > --- WEAPON (2) ------- Heavy Machine Gun Chainsword > --- INVENTORY (5) ---- Light Nuclear Core Micro Nuclear Core Experimental Sensor Array Advanced Terrain Scan Processor Peak State ------------ > --- POWER ------------ Micro Nuclear Core > --- PROPULSION ------- Makeshift Leg Armored Huge Wheel Improved VTOL Module > --- UTILITY ---------- Improved Sensor Array Improved Signal Interpreter Improved Power Shielding Hacking Suite Hacking Suite System Shield > --- WEAPON ----------- Heavy Machine Gun Chainsword > --- INVENTORY -------- Light Nuclear Core Micro Nuclear Core Experimental Sensor Array Advanced Terrain Scan Processor Axe [Rating: 49] Favorites ----------- Power Light Ion Engine Engine Light Ion Engine Power Core Micro Nuclear Core Propulsion Aluminum Leg Treads Light Treads Leg Aluminum Leg Wheel Armored Huge Wheel Flight Unit Improved VTOL Module Utility System Shield Device Improved Sensor Array Storage Small Storage Unit Processor Improved Signal Interpreter Hackware System Shield Protection Improved Power Shielding Weapon Rocket Launcher Energy Gun Small Laser Energy Cannon Beam Cannon Ballistic Gun Light Assault Rifle Ballistic Cannon Assault Cannon Launcher Rocket Launcher Impact Weapon Maul Slashing Weapon Chainsword Build | -11 -10 -10 -9 -9 -8 -7 -7 ------- Run | Yrd Mat Min Mat Min Mat Fac Low Slots Evolved 6 | . . . 2 . 2 2 . Power . | . . . . . . . . Propulsion 2 | . . . . . 2 . . Utility 4 | . . . 2 . . 2 . Weapon . | . . . . . . . . Parts Attached 92 | 5 19 4 23 4 19 5 13 Power 9 | 1 2 . 3 1 2 . . Engine 8 | 1 2 . 3 1 1 . . Core 1 | . . . . . 1 . . Reactor . | . . . . . . . . Propulsion 30 | 1 7 . 7 2 8 1 4 Treads 4 | 1 1 . . . . . 2 Leg 16 | . 6 . 5 . 4 . 1 Wheel 1 | . . . . . . . 1 Hover . | . . . . . . . . Flight 9 | . . . 2 2 4 1 . Utility 20 | 1 2 1 6 . 4 3 3 Device 8 | . 1 1 . . 2 2 2 Storage 2 | 1 . . 1 . . . . Processor 2 | . . . 1 . . 1 . Hackware 6 | . . . 4 . 2 . . Protection 2 | . 1 . . . . . 1 Artifact . | . . . . . . . . Weapon 33 | 2 8 3 7 1 5 1 6 Energy Gun 1 | . 1 . . . . . . Energy Cannon 5 | . 3 2 . . . . . Ballistic Gun 6 | 2 1 . 1 . . . 2 Ballistic Cannon 1 | . . . . . . . 1 Launcher 14 | . 3 1 5 1 3 . 1 Special Weapon . | . . . . . . . . Impact Weapon 2 | . . . 1 . 1 . . Slashing Weapon 4 | . . . . . 1 1 2 Piercing Weapon . | . . . . . . . . Special Melee Weapon . | . . . . . . . . Unidentified Prototypes 1 | . . . . . 1 . . Parts Lost 36 | . 4 1 11 1 6 . 13 Power 5 | . . . 2 1 1 . 1 Propulsion 14 | . . . 5 . 2 . 7 Utility 6 | . 1 1 . . 2 . 2 Weapon 11 | . 3 . 4 . 1 . 3 Highest Loss Streak 6 | . 3 1 4 1 5 . 6 To Critical Strikes . | . . . . . . . . Average Slot Usage (%) 87 | . 84 99 79 91 93 97 85 Engine 8 | . 14 14 9 9 8 . . Core 1 | . . . . . . 7 5 Treads 1 | . 6 . . . . . . Leg 10 | . 17 28 6 . 11 . 3 Flight 7 | . . . . 17 21 29 10 Device 5 | . 3 8 2 . 6 12 9 Storage 7 | . 14 14 10 . . . . Processor 3 | . . . 2 11 9 7 7 Hackware 17 | . . . 29 33 20 23 23 Protection 1 | . 2 4 . . . . 3 Energy Cannon 3 | . 8 10 2 . . . . Ballistic Gun 4 | . 13 . 7 . . . 1 Launcher 7 | . 4 17 8 8 7 7 1 Impact Weapon 1 | . . . . 11 8 . . Slashing Weapon 2 | . . . . . . 7 8 Naked Turns . | . . . . . . . . Heaviest Build 22 | 12 20 21 22 7 18 14 17 Greatest Support 60 | 20 40 20 20 8 27 17 60 Greatest Overweight (x) 4 | . . 1 4 1 1 1 3 Average Overweight (x) . | . . . 1 . . . . Largest Inventory Capacity 8 | 8 8 8 8 5 5 5 5 Average Capacity 6 | 7 8 8 7 5 5 5 5 Most Carried 8 | 7 8 8 8 5 5 5 5 Average Carried 6 | 4 7 7 6 4 4 4 4 Final Capacity 8 | 8 8 8 5 5 5 5 5 Final Carried 8 | 7 8 8 5 5 5 5 4 Class Distribution -------------------- 50% | Hacker-Mutant 31% | Mutant 18% | Hacker-Sprinter Dominant Class ---------------- Mutant | -10/Materials Mutant | -10/Mines Hacker-Mutant | -9/Materials Hacker-Sprinter | -9/Mines Hacker-Mutant | -8/Materials Hacker-Sprinter | -7/Factory Hacker-Mutant | -7/Lower Caves Resources | -11 -10 -10 -9 -9 -8 -7 -7 ----------- Run | Yrd Mat Min Mat Min Mat Fac Low Matter Collected 2352 | 193 464 272 694 78 386 130 135 Remotely . | . . . . . . . . Salvage Created 2372 | . 567 220 642 215 537 147 44 Parts 154 | . 32 8 54 9 40 10 1 Haulers Intercepted 3 | . . . 1 . 2 . . Recyclers Shooed 2 | . . 1 1 . . . . Parts Field Recycled . | . . . . . . . . Retrieved Matter . | . . . . . . . . Parts Self-Destructed 1 | . . . . . . . 1 Prevented . | . . . . . . . . Kills | -11 -10 -10 -9 -9 -8 -7 -7 ------- Run | Yrd Mat Min Mat Min Mat Fac Low Combat Hostiles Destroyed 80 | . 16 16 18 8 17 1 4 Melee 8 | . . . . 2 4 1 1 Guns 11 | . 10 . 1 . . . . Cannons 3 | . 2 1 . . . . . AOE 55 | . 3 15 17 5 12 . 3 Classes Destroyed 14 | . 4 2 5 1 . 1 1 Worker 3 | . . . 3 . . . . Builder 6 | . 1 . 2 1 2 . . Hauler 3 | . . . 1 . 2 . . Recycler 5 | . . 1 3 . 1 . . Operator 4 | . . . 2 . 1 1 . Watcher 10 | . 1 . 3 . 3 3 . Swarmer 24 | . 3 6 7 . 7 . 1 Grunt 33 | . 13 2 3 7 7 . 1 Brawler 1 | . . . . 1 . . . Duelist 1 | . . . 1 . . . . Sentry 11 | . . . 7 . 3 . 1 Hunter 1 | . . . . . . . 1 Programmer 1 | . . . . . . 1 . Assembled 8 | . . 8 . . . . . Best Kill Streak 16 | . 3 8 16 5 8 2 2 Combat Bots Only 10 | . 3 8 10 5 7 1 2 Max Kills in Single Turn 3 | . 2 3 3 2 3 1 1 Gunslinging . | . . . . . . . . Exploded 3 | . 1 3 2 2 3 . 1 Melee 1 | . . . . 1 1 1 1 Uniques/NPCs Destroyed . | . . . . . . . . Combat | -11 -10 -10 -9 -9 -8 -7 -7 -------- Run | Yrd Mat Min Mat Min Mat Fac Low Hostile Shots Fired 448 | . 90 17 84 11 68 2 176 Missed 135 | . 20 6 25 2 19 1 62 Damage Taken 4755 | . 888 256 940 99 743 16 1813 Core 1242 | . 96 37 197 28 177 . 707 Absorbed by Shields . | . . . . . . . . Redirected to Shielding 35 | . . . . . . . 35 Regen/Repaired (Parts) 109 | . . . . . 64 45 . Core Remaining (%) 64 | 100 . 46 . 43 67 . . Volleys Fired 209 | . 62 23 58 8 30 6 22 Largest 2 | . 2 2 2 1 1 1 1 Hottest 120 | . 120 66 60 30 33 30 33 Shots Fired 232 | . 81 26 59 8 30 6 22 Gun 77 | . 59 . 13 . . . 5 Cannon 24 | . 12 7 5 . . . . Launcher 131 | . 10 19 41 8 30 6 17 Special . | . . . . . . . . Kinetic 70 | . 52 . 13 . . . 5 Thermal 31 | . 19 7 5 . . . . Explosive 131 | . 10 19 41 8 30 6 17 Electromagnetic . | . . . . . . . . Robot Hit Streak 11 | . 11 6 7 . 6 1 11 Robot Miss Streak 4 | . 2 2 2 . 4 1 1 Penetration Max . | . . . . . . . . Secondary Targets . | . . . . . . . . Shots Hit Robots 169 | . 50 16 32 7 29 5 30 Core Hits 179 | . 33 22 52 12 40 9 11 Critical Kills 1 | . . . . . 1 . . Critical Parts Destroyed 5 | . 1 . . 2 2 . . Critical Strikes 11 | . 1 . . 2 3 . 5 Destroy 1 | . 1 . . . . . . Smash 5 | . . . . 2 3 . . Sever 5 | . . . . . . . 5 Melee Attacks 59 | . . . . 10 13 13 23 Impact 23 | . . . . 10 13 . . Slashing 36 | . . . . . . 13 23 Piercing . | . . . . . . . . Sneak Attacks 1 | . . . . 1 . . . Combat Hostiles . | . . . . . . . . Follow-up Attacks 5 | . . . . . . . 5 Damage Inflicted 9097 | . 1182 1133 2352 706 2115 305 1304 Guns 710 | . 523 . 73 . . . 114 Cannons 317 | . 161 122 34 . . . . Explosions 6451 | . 498 1011 2245 392 1646 125 534 Melee 1619 | . . . . 314 469 180 656 Ramming . | . . . . . . . . Kinetic 666 | . 479 . 73 . . . 114 Thermal 511 | . 205 272 34 . . . . Explosive 6236 | . 433 861 2245 392 1646 125 534 Electromagnetic 65 | . 65 . . . . . . Impact 783 | . . . . 314 469 . . Slashing 836 | . . . . . . 180 656 Piercing . | . . . . . . . . Highest Corruption 2 | . 2 2 . . 1 . . Average Corruption 1 | . 1 2 . . 1 . . Corruption Purged . | . . . . . . . . Corruption Blocked . | . . . . . . . . Effects 11 | . 2 8 . . 1 . . Message Errors 2 | . . 1 . . 1 . . Matter Fused 2 | . . 2 . . . . . Heat Flow Errors 1 | . . 1 . . . . . Energy Discharges 1 | . 1 . . . . . . Parts Fused 1 | . . 1 . . . . . Data Loss (minor) 2 | . . 2 . . . . . Misfires 1 | . 1 . . . . . . Alerts 1 | . . 1 . . . . . Overload Shots . | . . . . . . . . Overflow Damage 503 | . 9 67 68 147 163 19 30 Projectiles 5 | . . 5 . . . . . Explosions 230 | . 9 62 68 . 61 . 30 Melee 268 | . . . . 147 102 19 . Knockbacks 1 | . . . . . 1 . . Impact 1 | . . . . . 1 . . Kinetic . | . . . . . . . . Secondary . | . . . . . . . . Self-Inflicted Damage 468 | . 76 70 183 . 124 . 15 Shots 17 | . 3 3 7 . 3 . 1 Rammed . | . . . . . . . . Targets Rammed . | . . . . . . . . Kicked . | . . . . . . . . Crushed . | . . . . . . . . Highest Temperature 253 | . 222 253 35 . 17 . 4 Average Temperature 45 | . 54 53 14 . 9 . 3 Received Heat Transfer 1218 | . 393 6 249 42 252 . 276 Effects 1 | . 1 . . . . . . Interference 1 | . 1 . . . . . . Siege Activations . | . . . . . . . . Robots Corrupted . | . . . . . . . . Combat Hostiles . | . . . . . . . . Parts Fried 6 | . . . . 3 3 . . Impact Corruptions 9 | . . . . 5 4 . . Robots Melted 1 | . 1 . . . . . . Combat Hostiles 1 | . 1 . . . . . . Parts Melted 2 | . 2 . . . . . . Heat Transferred 916 | . 433 409 74 . . . . Parts Sabotaged . | . . . . . . . . Parts Stolen . | . . . . . . . . Parts Stripped . | . . . . . . . . Power Chain Reactions . | . . . . . . . . Alert | -11 -10 -10 -9 -9 -8 -7 -7 ------- Run | Yrd Mat Min Mat Min Mat Fac Low Peak Influence 673 | . 403 597 636 390 673 295 . Initial 205 | . . 156 156 93 152 205 . Average 317 | . 215 383 378 198 433 188 . Maximum Alert Level 2 | . 2 2 2 1 2 1 . Low Security (%) 29 | 100 49 27 13 72 5 43 . Level 1 37 | . 48 9 42 27 36 56 . Level 2 32 | . 1 62 44 . 57 . . Level 3 . | . . . . . . . . Level 4 . | . . . . . . . . Level 5 . | . . . . . . . . High Security . | . . . . . . . . Max Security . | . . . . . . . . Squads Dispatched 13 | . 6 . 2 1 2 2 . Investigation 6 | . 5 . . . 1 . . Extermination 1 | . . . . . . 1 . Reinforcement 6 | . 1 . 2 1 1 1 . Assault . | . . . . . . . . Garrison . | . . . . . . . . Intercept . | . . . . . . . . Searches Triggered . | . . . . . . . . Construction Impeded 3 | . . . 1 1 1 . . Haulers Reinforced . | . . . . . . . . Active Scanning Responses . | . . . . . . . . Cargo Convoy Interrupts . | . . . . . . . . Stealth | -11 -10 -10 -9 -9 -8 -7 -7 --------- Run | Yrd Mat Min Mat Min Mat Fac Low Distress Signals 4 | . . . 1 . 3 . . Communications Jammed . | . . . . . . . . Distress Signals . | . . . . . . . . Times Spotted 114 | . 22 16 28 12 25 6 5 Peak Tracking Total 8 | . 3 3 7 4 8 2 3 Tactical Retreats 7 | . 2 1 3 . 1 . . Traps | -11 -10 -10 -9 -9 -8 -7 -7 ------- Run | Yrd Mat Min Mat Min Mat Fac Low Traps Triggered 5 | . 4 . . . 1 . . Indirectly . | . . . . . . . . Trap Hack Attempts . | . . . . . . . . Triggered . | . . . . . . . . Disarmed . | . . . . . . . . Reprogrammed . | . . . . . . . . Reused . | . . . . . . . . Traps Extracted . | . . . . . . . . Installed . | . . . . . . . . Triggered . | . . . . . . . . Machines | -11 -10 -10 -9 -9 -8 -7 -7 ---------- Run | Yrd Mat Min Mat Min Mat Fac Low Machines Disabled 25 | . 6 6 4 6 2 1 . Max in Single Turn 6 | . 2 6 1 4 1 1 . Machines Repaired . | . . . . . . . . Machines Dismantled . | . . . . . . . . Machines Sabotaged . | . . . . . . . . Overloaded Fab Kills . | . . . . . . . . Hacking | -11 -10 -10 -9 -9 -8 -7 -7 --------- Run | Yrd Mat Min Mat Min Mat Fac Low Machines Accessed 23 | . 5 . 5 . 4 8 1 Terminals 16 | . 5 . 4 . 2 5 . Fabricators . | . . . . . . . . Repair Stations 3 | . . . 1 . 1 1 . Recycling Units 1 | . . . . . . 1 . Scanalyzers 2 | . . . . . 1 1 . Garrison Access . | . . . . . . . . Total Hacks 77 | . 21 . 17 . 15 23 1 Successful 41 | . 10 . 6 . 10 14 1 Failed 36 | . 11 . 11 . 5 9 . Catastrophic 7 | . 1 . 4 . 2 . . Database Lockouts . | . . . . . . . . Manual 46 | . 14 . 15 . 5 12 . Terminals 58 | . 21 . 15 . 6 16 . Fabricators . | . . . . . . . . Repair Stations 7 | . . . 2 . 3 2 . Recycling Units 4 | . . . . . . 4 . Scanalyzers 7 | . . . . . 6 1 . Garrison Access . | . . . . . . . . Terminal Hacks 16 | . 6 . 4 . 2 3 1 Open Door 1 | . . . . . . . 1 Branch Access Points 2 | . 1 . . . . 1 . Terminal Index 2 | . 1 . . . . 1 . Recycling Unit Index 1 | . 1 . . . . . . Alert Level 1 | . . . . . 1 . . Unreport Threat 4 | . . . 2 . 1 1 . Locate Traps 1 | . 1 . . . . . . Surveillance Status 1 | . 1 . . . . . . Recall Investigation 1 | . 1 . . . . . . Recall Reinforcements 2 | . . . 2 . . . . Fabricator Hacks . | . . . . . . . . Repair Station Hacks 4 | . . . . . 2 2 . Scan Component 2 | . . . . . 1 1 . Repair 2 | . . . . . 1 1 . Recycling Unit Hacks 4 | . . . . . . 4 . Process 1 | . . . . . . 1 . Report Inventory 1 | . . . . . . 1 . Retrieve Matter 2 | . . . . . . 2 . Scanalyzer 6 | . . . . . 6 . . Insert Component 2 | . . . . . 2 . . Analyze 4 | . . . . . 4 . . Garrison Access Hacks . | . . . . . . . . Unauthorized Hacks 11 | . 4 . 2 . . 5 . Terminals 11 | . 4 . 2 . . 5 . Track 1 | . . . . . . 1 . Botnet 10 | . 4 . 2 . . 4 . Fabricators . | . . . . . . . . Repair Stations . | . . . . . . . . Recycling Units . | . . . . . . . . Scanalyzers . | . . . . . . . . Garrison Access . | . . . . . . . . Data Cores Recovered 1 | . . . . . . 1 . Used . | . . . . . . . . Hacking Detections 15 | . 5 . 3 . 3 4 . Full Trace Events 4 | . 3 . . . 1 . . Feedback Events 1 | . 1 . . . . . . Corruption 1 | . 1 . . . . . . Feedback Blocked . | . . . . . . . . Robot Schematics Acquired . | . . . . . . . . Robots Built . | . . . . . . . . Authchips . | . . . . . . . . Time . | . . . . . . . . Total Robot Build Rating . | . . . . . . . . Part Schematics Acquired 2 | . . . . . 2 . . Parts Built . | . . . . . . . . Authchips . | . . . . . . . . Time . | . . . . . . . . Total Part Build Rating . | . . . . . . . . Parts Repaired 2 | . . . . . 1 1 . Time 46 | . . . . . 16 30 . Parts Recycled . | . . . . . . . . Recycled Matter 35 | . . . . . . 35 . Retrieved Matter 35 | . . . . . . 35 . Retrieved Components . | . . . . . . . . Parts Scanalyzed 2 | . . . . . 2 . . Part Schematics Acquired 2 | . . . . . 2 . . Parts Damaged . | . . . . . . . . Bothacking | -11 -10 -10 -9 -9 -8 -7 -7 ------------ Run | Yrd Mat Min Mat Min Mat Fac Low Used RIF Installer . | . . . . . . . . Robots Hacked . | . . . . . . . . Non-combat . | . . . . . . . . Combat . | . . . . . . . . Robot Hacks Applied . | . . . . . . . . Relay Couplers Released . | . . . . . . . . Fabnet Peak Effective % . | . . . . . . . . Robots Rewired . | . . . . . . . . Allies Hacked . | . . . . . . . . Hacks Repelled . | . . . . . . . . Allies | -11 -10 -10 -9 -9 -8 -7 -7 -------- Run | Yrd Mat Min Mat Min Mat Fac Low Total Allies . | . . . . . . . . Largest Group . | . . . . . . . . Highest-Rated Group . | . . . . . . . . Highest-Rated Ally . | . . . . . . . . Total Orders . | . . . . . . . . Ally Attacks . | . . . . . . . . Total Damage . | . . . . . . . . Kills . | . . . . . . . . Allies Corrupted . | . . . . . . . . Allies Melted . | . . . . . . . . Intel | -11 -10 -10 -9 -9 -8 -7 -7 ------- Run | Yrd Mat Min Mat Min Mat Fac Low Robot Analysis Total . | . . . . . . . . Derelict Logs Recovered 2 | . . . . 1 . . 1 Drone Launches . | . . . . . . . . Drone Recoveries . | . . . . . . . . Exploration | -11 -10 -10 -9 -9 -8 -7 -7 ------------- Run | Yrd Mat Min Mat Min Mat Fac Low Turns Passed 5009 | 84 785 691 1437 177 476 472 887 Spaces Moved 4643 | 48 443 441 843 321 398 1189 960 Core 428 | 6 . . 410 12 . . . Treads 184 | 42 134 . . . . . 8 Legs 1193 | . 309 441 294 . 149 . . Wheels 429 | . . . . . . . 429 Hover . | . . . . . . . . Flight 2409 | . . . 139 309 249 1189 523 Fastest Speed 26 | 50 120 120 32 32 26 28 28 Average Speed 85 | 146 132 131 148 33 69 28 77 Slowest Speed 260 | 160 160 190 260 100 190 112 245 Overloaded Moves . | . . . . . . . . Propulsion Burnouts . | . . . . . . . . Robots Hopped 10 | . . . 1 2 . 7 . Cave-ins Triggered . | . . . . . . . . Exploration Rate (%) 54 | 5 65 86 60 74 27 24 97 Regions Visited 7 Branch Regions 3 Pre-discovered Areas 1 | . . . . 1 . . . Known Exits Taken 5 | . 1 . 1 1 1 1 . Unknown Exits Taken 2 | 1 . 1 . . . . . Scrap Searched 8 | . . 1 . 2 . . 5 Spaces Dug 25 | . . 16 . . . 7 2 Terrain Destroyed 821 | . 49 210 283 10 147 37 85 Melee 9 | . . . . . . 7 2 Projectile . | . . . . . . . . AOE 812 | . 49 210 283 10 147 30 83 Terrain Rammed . | . . . . . . . . Walls Destroyed . | . . . . . . . . Machines Disabled . | . . . . . . . . Actions | -11 -10 -10 -9 -9 -8 -7 -7 --------- Run | Yrd Mat Min Mat Min Mat Fac Low Total 5342 | 59 565 524 969 358 537 1286 1044 Wait 261 | . 20 52 14 14 64 74 23 Move 4617 | 47 442 440 840 316 397 1175 960 Hop 9 | . . . 1 2 . 6 . Pick Up 44 | 7 9 3 13 1 5 3 3 Fast Attach 53 | 5 6 1 14 3 12 3 9 Attach 18 | . 3 1 5 1 4 1 3 Detach 1 | . . . . . . . 1 Swap 21 | . 10 2 4 . 3 1 1 Drop 55 | . 13 2 20 3 9 4 4 Fire 209 | . 62 23 58 8 30 6 22 Melee 54 | . . . . 10 13 13 18 Ram . | . . . . . . . . Kick . | . . . . . . . . Crush . | . . . . . . . . Escape Stasis . | . . . . . . . . Rewire . | . . . . . . . . Trap . | . . . . . . . . Miscellaneous . | . . . . . . . . Route ------- -11/Scrapyard -10/Materials (discovered 3 exits: *Mat x2 / *Min) -10/Mines -9/Materials (discovered 2 exits: *Mat / *Min) -9/Mines -8/Materials -7/Factory (discovered 4 exits: *Fac / *Sto / *Low x2) -7/Lower Caves (discovered 1 exit: *Low) History --------- Turn | Location | Event 23 | -11/Scrapyard | Discovered new exit (range 15) 85 | -11/Scrapyard | Entered Materials 232 | -10/Materials | Identified exit to Mines 321 | -10/Materials | Build established: Mutant 518 | -10/Materials | Discovered new exit (range 4) 530 | -10/Materials | Lost 3 parts (3w) 785 | -10/Materials | Discovered new exit (range 3) 870 | -10/Materials | Entered Mines 871 | -10/Mines | Assembled infested the area 876 | -10/Mines | Assisted by a Guerilla fighting off Assembled 879 | -10/Mines | Met a Derelict bent on vengeance 1103 | -10/Mines | Core integrity fell below 50% 1138 | -10/Mines | Destroyed 8 combat bots 1342 | -10/Mines | Found a damaged Exp. Sensor Array with a note attached 1346 | -10/Mines | Found Prototype Device 1480 | -10/Mines | Discovered new exit (range 6) 1561 | -10/Mines | Entered Materials 1561 | -9/Materials | Evolved 2 slots: Utility x2 1750 | -9/Materials | Discovered new exit (range 15) 1855 | -9/Materials | Destroyed 10 combat bots 1855 | -9/Materials | Lost 3 parts (1p1n1w) 1892 | -9/Materials | Build established: Hacker-Mutant 1924 | -9/Materials | Lost 4 parts (1p2n1w) 2021 | -9/Materials | Lost 4 parts (2n2w) 2582 | -9/Materials | Discovered new exit (range 5) 2977 | -9/Materials | Identified exit to Materials 2993 | -9/Materials | Identified exit to Mines 2998 | -9/Materials | Entered Mines 3011 | -9/Mines | Core integrity fell below 50% 3091 | -9/Mines | Learned Materials garrison access intel 3144 | -9/Mines | Discovered exit to Materials (range 16) 3153 | -9/Mines | Learned location of Storage (-7) 3175 | -9/Mines | Entered Materials 3175 | -8/Materials | Evolved 2 slots: Propulsion x2 3176 | -8/Materials | Loaded intel: 1 garrison access location 3273 | -8/Materials | Lost 5 parts (1p2n1u1w) 3435 | -8/Materials | Destroyed 7 combat bots 3470 | -8/Materials | Repaired Rocket Launcher 3622 | -8/Materials | Discovered new exit (range 15) 3639 | -8/Materials | Identified exit to Factory 3651 | -8/Materials | Entered Factory 3651 | -7/Factory | Evolved 2 slots: Utility x2 3738 | -7/Factory | Discovered new exit (range 14) 3744 | -7/Factory | Identified exit to Storage 3746 | -7/Factory | Discovered new exit (range 14) 3750 | -7/Factory | Identified exit to Factory 3898 | -7/Factory | Build established: Hacker-Sprinter 4080 | -7/Factory | Repaired Imp. VTOL Module 4114 | -7/Factory | Identified exit to Lower Caves 4123 | -7/Factory | Entered Lower Caves 4131 | -7/Lower Caves | Encountered a Warlord checkpoint 4179 | -7/Lower Caves | Learned Factory emergency access door positions 4250 | -7/Lower Caves | Attracted the attention of an 0b10 checkpoint 4344 | -7/Lower Caves | Lost 6 parts (3n1u2w) 4548 | -7/Lower Caves | Build established: Hacker-Mutant 4707 | -7/Lower Caves | Discovered new exit (range 11) 4716 | -7/Lower Caves | Identified exit to Lower Caves 4867 | -7/Lower Caves | Spotted B-75 Beast 4898 | -7/Lower Caves | Core integrity fell below 50% 4914 | -7/Lower Caves | Core integrity fell below 20% 4931 | -7/Lower Caves | Lost 4 parts (1p2n1u) 5010 | -7/Lower Caves | Destroyed by B-75 Beast with Heavy Machine Gun Last Messages --------------- 04898_ Chainsword follow-up attack on B-75 Beast. 04898_ B-75 Beast Imp. Medium Treads severed. 04900_ Arm. Huge Wheel destroyed. 04901_ Chainsword follow-up attack on B-75 Beast. 04904_ B-75 Beast Imp. Cooling System severed. 04907_ Knocked back. 04972_ Acquired Imp. Medium Treads. 04979_ Acquired Imp. Cooling System. 04982_ Acquired 6 matter. 04983_ Acquired 2 matter. 04993_ Imp. Cooling System blasted off. 04995_ Chainsword follow-up attack on B-75 Beast. 04995_ B-75 Beast Lyr. Medium Armor Plating severed. 04996_ Axe destroyed. 04999_ Imp. VTOL Module destroyed. 05005_ Imp. Medium Treads destroyed. Map ----- +----------------------------------------------------+ | ##### ###### #???????????????##### | | ????## ##?????????????## | | ?????#### ###???????????# ## | | ????????# ##### ##????###???# ### | | ????????# ##?## ##?### ##??#### #?? | | ????????# #?## ### ####??## ### | | ???????## #?# #??## # | | ????#### ## ##?# ## ##??# | | ???## #?##??# ### #### ##???### | | ???# #????## #?# ##??####"#####?## | | ???# ##??## #?# #??????##"# ##?# | | ??## #??# ##?# ##????##### #### | | ??# #??# ####??# ##????## ## #?# ## | | ??# ##?## ##????###???### #?# ## | | ??# ##??# #??????????# ### ## | | ??# #???# #??????????# ## # | | ??# #???# #??????????## | | ??#### # ### ##??????????### | | ?????# # #### ##????######## ## ### ## | | ?????# # #?# #????# ######?#### | | ?????# ## ##?# #????# ##???????### | | ?????# #?##??# ##??## ;#????????# | | ?????# #?????# ## ####; ###????????## | | ???### ##????##?# BB;;; #???????????# | | ??## # ######### BB ;; % % #???????????# | | ??# @ % % ####??????????## | | ?### #???????????### | | ?# ###### %% % #???????????# | | ?# # ####????## #;## #??????????# | | ?## #????????##### ##?"; #?????????## | | ??####????????????# #### #?????????## | | ??????????????????## #? #?????????## | | ???????????????????## #??????????## | | ????????????????????#### #???????????#### | | ????????????????????????# #??????????????? | | ?????????????????????????##"## ##??????????????? | | ??????????????????????????##??####???????????????? | | ?????????????????????????????????????????????????? | | ?????????????????????????????????????????????????? | | ?????????????????????????????????????????????????? | | ?????????????????????????????????????????????????? | | ?????????????????????????????????????????????????? | | ?????????????????????????????????????????????????? | | ?????????????????????????????????????????????????? | | ?????????????????????????????????????????????????? | | ?????????????????????????????????????????????????? | | ?????????????????????????????????????????????????? | | ?????????????????????????????????????????????????? | | ?????????????????????????????????????????????????? | | ?????????????????????????????????????????????????? | +----------------------------------------------------+ Best States ------------- Heat Dissipation 61 Energy Generation 15 Energy Capacity 265 Matter Stores 300 Matter Capacity 300 Sight Range 16 Robot Scan Range 15 Terrain Scan Density 10 Jamming Range 12 Armor Coverage 150 Power Shielding 66 Evasion (%) 64 Recoil Reduction 2 Offensive Hacking 20 Defensive Hacking 20 Item Schematics ----------------- Hacking Suite | -8/Materials | Scanalyzed Mni. Grenade Launcher | -8/Materials | Scanalyzed Robot Schematics ------------------ None Fabricated ------------ Nothing Alien Tech Used ----------------- None Achievements -------------- None Challenges ------------ None Game ------ Seed HardenedChromaticLoader Manual? 0 Play Time 01:13:21 Cumulative 32.4 hours Start 2024.04.15 @ 19:05:16 End 2024.04.15 @ 20:17:20 Sessions 1 Manual Loads 0 Difficulty Rogue Special Mode None Game No. 29 Rogue 25 Adventurer 0 Explorer 4 Win Type - Total 1 Types 1/0/0/0/0/0/0/0/0 Lore% 25 Gallery% 32 Achievement% 35 Wizard Run 0 Options --------- Layout 1 ASCII 0 Keyboard 0 Movement Mouse Keybinds 0 Fullscreen 2 Font 32/SmallcapsGlow Map View 50x35 Zoom Use 0% Tactical HUD 1 Map Filters NONE Filters NONE Steam 1 RUN: ab9f7dfd-e4f2-44dd-a818-fd6277acfec7